fUST/lending_fUST_20241125
["ID","MTS","AMOUNT","RATE_DAILY","PERIOD"]
[343294074,1732548636331,-150.0,0.00029344,2]
[343294075,1732548636340,-531.0,0.00029344,2]
[343294076,1732548636350,-1109.0,0.00029344,2]
[343294077,1732548636359,-2379.0,0.00029344,2]
[343294078,1732548636370,-644.87415073,0.00029373,2]
[343294079,1732548636379,-500.0,0.00029373,5]
[343294080,1732548636389,-501.20095146,0.00029373,5]
[343294081,1732548636398,-500.99511087,0.00029373,5]
[343294082,1732548636408,-500.0,0.00029373,5]
[343294083,1732548636417,-500.0,0.00029398,2]
[343294084,1732548636427,-500.0,0.00029398,2]
[343294085,1732548636436,-500.0,0.00029398,2]
[343294086,1732548636446,-500.0,0.00029398,2]
[343294087,1732548636456,-500.0,0.00029398,2]
[343294088,1732548636469,-500.0,0.00029398,2]
[343294089,1732548636484,-533.92163532,0.00029398,2]
[343294090,1732548636494,-500.0,0.00029398,2]
[343294091,1732548636504,-500.0,0.00029398,2]
[343294092,1732548636514,-300.0,0.00029398,2]
[343294093,1732548636527,-500.0,0.00029398,2]
[343294094,1732548636537,-500.0,0.00029398,2]
[343294095,1732548636547,-500.0,0.00029398,2]
[343294096,1732548636558,-500.0,0.00029398,2]
[343294097,1732548636568,-500.0,0.00029398,2]
[343294098,1732548636578,-500.65122307,0.00029398,2]
[343294099,1732548636587,-515.57865869,0.00029398,2]
[343294100,1732548636597,-500.0,0.00029398,2]
[343294101,1732548636607,-500.0,0.00029398,2]
[343294102,1732548636616,-500.0,0.00029398,2]
[343294103,1732548636625,-500.0,0.00029398,2]
[343294104,1732548636635,-500.0,0.00029398,2]
[343294105,1732548636645,-500.0,0.00029398,2]
[343294106,1732548636666,-500.0,0.00029398,2]
[343294107,1732548636677,-500.0,0.00029398,2]
[343294108,1732548636688,-500.0,0.00029398,2]
[343294109,1732548636697,-500.0,0.00029398,2]
[343294110,1732548636708,-500.0,0.00029398,2]
[343294111,1732548636722,-500.0,0.00029398,2]
[343294112,1732548636732,-500.0,0.00029398,2]
[343294113,1732548636742,-500.0,0.00029398,2]
[343294114,1732548636752,-528.84708674,0.00029398,2]
[343294115,1732548636762,-500.0,0.00029398,2]
[343294116,1732548636772,-500.0,0.00029398,2]
[343294117,1732548636782,-500.0,0.00029398,2]
[343294118,1732548636792,-500.0,0.00029398,2]
[343294119,1732548636802,-500.0,0.00029398,2]
[343294120,1732548636812,-500.0,0.00029398,2]
[343294121,1732548636822,-500.0,0.00029398,2]
[343294122,1732548636832,-500.0,0.00029398,2]
[343294123,1732548636842,-500.0,0.00029398,2]
[343294124,1732548636851,-500.0,0.00029398,2]
[343294125,1732548636861,-500.0,0.00029398,2]
[343294126,1732548636871,-500.0,0.00029398,2]
[343294127,1732548636881,-500.0,0.00029398,2]
[343294128,1732548636890,-500.0,0.00029398,2]
[343294129,1732548636900,-500.0,0.00029398,2]
[343294130,1732548636911,-500.0,0.00029399,2]
[343294131,1732548636920,-355.28,0.00029399,2]
[343294132,1732548636930,-500.0,0.00029399,2]
[343294133,1732548636940,-214.67394382,0.00029399,2]
[343294134,1732548636950,-500.0,0.00029399,2]
[343294135,1732548636959,-500.0,0.00029399,2]
[343294136,1732548636973,-500.0,0.00029399,2]
[343294137,1732548636983,-500.0,0.00029399,2]
[343294138,1732548636993,-500.0,0.00029399,2]
[343294139,1732548637004,-500.0,0.00029399,2]
[343294140,1732548637014,-500.0,0.00029399,2]
[343294141,1732548637024,-577.16,0.00029399,2]
[343294142,1732548637034,-500.0,0.00029399,2]
[343294143,1732548637044,-500.0,0.00029399,2]
[343294144,1732548637054,-500.0,0.00029399,2]
[343294145,1732548637064,-500.0,0.00029399,2]
[343294146,1732548637074,-500.0,0.00029399,2]
[343294147,1732548637084,-500.0,0.00029399,2]
[343294148,1732548637093,-500.0,0.00029399,2]
[343294149,1732548637103,-500.0,0.00029399,2]
[343294150,1732548637113,-638.54963281,0.00029399,2]
[343294151,1732548637123,-500.0,0.00029399,2]
[343294152,1732548637133,-7742.72220982,0.000294,7]
[343294153,1732548637144,-1210.692953,0.000294,2]
[343294154,1732548637154,-7229.6036297,0.00029414,2]
[343294155,1732548637165,-153.0,0.00029485,2]
[343294156,1732548637176,-500.0,0.00029549,2]
[343294157,1732548637186,-500.0,0.00029549,2]
[343294158,1732548637196,-218.93300806,0.00029549,2]
[343294159,1732548637207,-500.0,0.0002955,2]
[343294160,1732548637220,-500.0,0.0002955,2]
[343294161,1732548637230,-222000.0,0.00029551,2]
[343294162,1732548637240,-501.01942643,0.00029573,5]
[343294163,1732548637250,-500.71588841,0.00029573,5]
[343294164,1732548637259,-500.0,0.00029573,5]
[343294165,1732548637270,-831.82,0.00029586,2]
[343294166,1732548637280,-500.0,0.00029586,2]
[343294167,1732548637290,-810.37,0.00029586,2]
[343294168,1732548637300,-500.0,0.00029586,2]
[343294169,1732548637310,-500.0,0.00029586,2]
[343294170,1732548637319,-500.0,0.00029586,2]
[343294171,1732548637329,-500.0,0.00029586,2]
[343294172,1732548637339,-500.0,0.00029587,2]
[343294173,1732548637348,-500.0,0.00029587,2]
[343294174,1732548637358,-619.14,0.00029587,2]
[343294175,1732548637368,-500.0,0.00029587,2]
[343294176,1732548637377,-500.0,0.00029587,2]
[343294177,1732548637387,-500.0,0.00029587,2]
[343294178,1732548637397,-500.0,0.00029587,2]
[343294179,1732548637407,-500.0,0.00029587,2]
[343294180,1732548637417,-500.0,0.00029587,2]
[343294181,1732548637427,-500.0,0.00029587,2]
[343294182,1732548637436,-500.0,0.00029587,2]
[343294183,1732548637446,-500.0,0.00029588,2]
[343294184,1732548637455,-412.07635499,0.00029588,2]
[343294185,1732548637468,-500.0,0.00029588,2]
[343294186,1732548637479,-500.0,0.00029588,2]
[343294187,1732548637492,-500.0,0.00029588,2]
[343294188,1732548637503,-500.0,0.00029588,2]
[343294189,1732548637513,-500.0,0.00029588,2]
[343294190,1732548637523,-551.15,0.00029588,2]
[343294191,1732548637533,-521.91069184,0.00029588,2]
[343294192,1732548637542,-500.0,0.00029588,2]
[343294193,1732548637552,-605.37197784,0.00029588,2]
[343294195,1732548637562,-227.51771443,0.00029588,2]
[343294197,1732548637572,-1500.0,0.000296,2]
[343294199,1732548637582,-1500.0,0.000296,2]
[343294200,1732548637591,-1500.0,0.000296,2]
[343294202,1732548637601,-1500.0,0.000296,2]
[343294204,1732548637611,-1500.0,0.000296,2]
[343294206,1732548637621,-1618.14,0.000296,2]
[343294208,1732548637632,-1500.0,0.000296,2]
[343294210,1732548637641,-1500.0,0.000296,2]
[343294212,1732548637652,-1500.0,0.000296,2]
[343294213,1732548637662,-1500.0,0.000296,2]
[343294214,1732548637672,-500.0,0.00029607,2]
[343294215,1732548637682,-32765.507581,0.0002961,2]
[343294216,1732548637692,-4711.442,0.0002961,2]
[343294217,1732548637701,-151.0,0.0002961,2]
[343294218,1732548637711,-915.32391828,0.00029617,2]
[343294219,1732548637724,-448.25573374,0.00029659,2]
[343294220,1732548637735,-162.75229773,0.00029672,2]
[343294221,1732548637744,-2931.33902909,0.00029672,2]
[343294222,1732548637754,-500.0,0.00029672,2]
[343294223,1732548637764,-517.73903731,0.00029672,2]
[343294224,1732548637773,-500.0,0.00029672,2]
[343294226,1732548637782,-500.0,0.00029672,2]
[343294228,1732548637791,-500.0,0.00029672,2]
[343294229,1732548637801,-620.30183345,0.00029672,2]
[343294231,1732548637811,-500.0,0.00029672,2]
[343294238,1732548637821,-529.828077,0.00029672,2]
[343294239,1732548637955,-204.28405147,0.00029672,2]
[343294240,1732548637969,-500.0,0.00029672,2]
[343294241,1732548637980,-500.0,0.00029672,2]
[343294242,1732548637990,-500.0,0.00029672,2]
[343294243,1732548638000,-500.0,0.00029672,2]
[343294244,1732548638009,-500.0,0.00029672,2]
[343294245,1732548638020,-500.0,0.00029672,2]
[343294246,1732548638029,-500.0,0.00029672,2]
[343294247,1732548638039,-500.0,0.00029672,2]
[343294248,1732548638049,-500.0,0.00029672,2]
[343294249,1732548638059,-500.0,0.00029672,2]
[343294250,1732548638069,-500.0,0.00029672,2]
[343294251,1732548638078,-500.0,0.00029672,2]
[343294252,1732548638089,-500.0,0.00029672,2]
[343294253,1732548638099,-500.0,0.00029672,2]
[343294254,1732548638109,-500.0,0.00029672,2]
[343294255,1732548638119,-500.0,0.00029672,2]
[343294256,1732548638129,-500.0,0.00029672,2]
[343294257,1732548638138,-500.0,0.00029673,2]
[343294258,1732548638148,-500.0,0.00029673,2]
[343294259,1732548638159,-500.0,0.00029673,2]
[343294260,1732548638169,-500.0,0.00029673,2]
[343294261,1732548638178,-500.0,0.00029673,2]
[343294262,1732548638188,-500.0,0.00029673,2]
[343294264,1732548638197,-500.0,0.00029673,2]
[343294266,1732548638207,-500.0,0.00029673,2]
[343294267,1732548638219,-577.16,0.00029673,2]
[343294268,1732548638228,-500.0,0.00029673,2]
[343294270,1732548638237,-500.0,0.00029673,2]
[343294272,1732548638247,-500.0,0.00029673,2]
[343294273,1732548638257,-500.0,0.00029673,2]
[343294274,1732548638266,-500.0,0.00029673,2]
[343294276,1732548638276,-434.2,0.00029673,2]
[343294278,1732548638285,-151.0,0.00029673,15]
[343294280,1732548638295,-420.0,0.00029681,2]
[343294281,1732548638305,-186.0,0.000297,2]
[343294282,1732548638314,-300.0,0.000297,2]
[343294283,1732548638324,-150.0,0.000297,2]
[343294284,1732548638334,-167.736208,0.00029741,2]
[343294285,1732548638343,-151.0,0.00029747,7]
[343294286,1732548638353,-151.0,0.00029747,7]
[343294287,1732548638362,-151.0,0.00029747,7]
[343294288,1732548638372,-151.0,0.00029747,7]
[343294289,1732548638382,-151.0,0.00029747,7]
[343294290,1732548638392,-151.0,0.00029747,7]
[343294291,1732548638402,-151.0,0.00029747,7]
[343294292,1732548638412,-151.0,0.00029747,7]
[343294294,1732548638421,-151.0,0.00029747,7]
[343294296,1732548638431,-151.0,0.00029747,7]
[343294297,1732548638441,-152.69637,0.00029747,7]
[343294299,1732548638450,-4000.0,0.00029747,10]
[343294301,1732548638460,-500.0,0.00029751,10]
[343294303,1732548638476,-500.00000001,0.00029751,10]
[343294305,1732548638485,-150.05,0.00029751,10]
[343294307,1732548638494,-150.05,0.00029751,2]
[343294309,1732548638504,-500.0,0.00029751,10]
[343294310,1732548638514,-500.0,0.00029751,10]
[343294311,1732548638524,-150.05,0.00029751,2]
[343294312,1732548638533,-151.83351094,0.00029751,10]
[343294313,1732548638542,-150.05,0.00029751,10]
[343294314,1732548638552,-500.0,0.00029751,10]
[343294315,1732548638563,-299.94865362,0.00029751,10]
[343294316,1732548638572,-500.0,0.00029751,10]
[343294317,1732548638581,-150.05,0.00029751,10]
[343294318,1732548638591,-150.05,0.00029751,2]
[343294319,1732548638601,-500.0,0.00029751,10]
[343294320,1732548638610,-500.0,0.00029751,10]
[343294321,1732548638619,-151.0,0.00029754,7]
[343294322,1732548638629,-151.929858,0.00029754,7]
[343294323,1732548638638,-151.0,0.00029754,7]
[343294324,1732548638647,-299.13424,0.00029754,7]
[343294325,1732548638656,-177.08999727,0.00029759,2]
[343294326,1732548638666,-177.08999727,0.00029759,2]
[343294327,1732548638675,-2124462.2986852,0.00029759,10]
[343294328,1732548638684,-272996.73727188,0.00029759,10]
[343294329,1732548638693,-234728.93376252,0.00029759,7]
[343294330,1732548638708,-8535.7135761,0.00029759,7]
[343294331,1732548638725,-777.27608247,0.00029759,7]
[343294332,1732548638737,-284154.34437482,0.00029759,7]
[343294333,1732548638746,-10099.999999,0.00029759,2]
[343294334,1732548638756,-4846.68,0.00029759,2]
[343294335,1732548638766,-4000.14766934,0.00029759,2]
[343294336,1732548638777,-394.90821292,0.00029759,2]
[343294337,1732548638788,-400.0,0.00029759,2]
[343294338,1732548638801,-287.97982102,0.00029759,2]
[343294339,1732548638812,-188.32648223,0.00029759,12]
[343294340,1732548638823,-498.0,0.00029759,7]
[343294341,1732548638835,-387.20648332,0.00029759,2]
[343294342,1732548638846,-454935.19274046,0.00029759,10]
[343294343,1732548638859,-75963.38543562,0.00029759,10]
[343294344,1732548638873,-47689.69135963,0.00029759,10]
[343294381,1732548640072,-275835.77466813,0.00029759,10]
[343294383,1732548640082,-3846.83521355,0.00029759,10]
[343294390,1732548640141,-474.005,0.00029759,10]
[343294392,1732548640153,-8197.27532528,0.00029759,10]
[343294395,1732548640187,-500.0,0.00029039,2]
[343294397,1732548640196,-1399.32,0.00029672,2]
[343294399,1732548640209,-2407.20713153,0.00029672,2]
[343294401,1732548640225,-7142.08251847,0.00029759,10]
[343294404,1732548640241,-72979.2351619,0.00029759,10]
[343294408,1732548640295,-671.16,0.00029759,10]
[343294409,1732548640306,-46259.84992331,0.00029759,10]
[343294411,1732548640323,-500.0,0.00029313,2]
[343294412,1732548640332,-201310.8397733,0.00029759,10]
[343294414,1732548640342,-486.31527485,0.00029759,3]
[343294416,1732548640351,-79192.91649309,0.00029759,7]
[343294417,1732548640360,-427361.1052442,0.00029759,10]
[343294419,1732548640369,-276989.19489754,0.00029759,10]
[343294420,1732548640379,-508.03,0.00029759,14]
[343294422,1732548640388,-13478.55552906,0.00029759,2]
[343294424,1732548640397,-2493136.77713158,0.00029759,10]
[343294426,1732548640408,-14991.092072,0.00029759,10]
[343294428,1732548640420,-4969.47022247,0.00029759,10]
[343294431,1732548640439,-489.69,0.00029587,2]
[343294433,1732548640454,-10.31,0.00029587,2]
[343294434,1732548640463,-5075.58161603,0.00029759,10]
[343294435,1732548640480,-691.74497886,0.00029759,10]
[343294472,1732548644651,-500.0,0.00029039,2]
[343294474,1732548644661,-500.0,0.00029313,2]
[343294476,1732548644671,-500.0,0.00029587,2]
[343294478,1732548644681,-516.7,0.00029749,10]
[343294480,1732548644691,-150.05,0.00029751,10]
[343294482,1732548644701,-1185.53327486,0.00029759,10]
[343294485,1732548644713,-16019.4468538,0.00029759,10]
[343294487,1732548644730,-6239.11303419,0.00029759,10]
[343294490,1732548644745,-482.183988,0.00029759,10]
[343294492,1732548644756,-7590.2,0.00029759,10]
[343294494,1732548644767,-912.69,0.00029759,10]
[343294496,1732548644779,-1197.364002,0.00029759,10]
[343294498,1732548644790,-10088.70000003,0.00029759,10]
[343294501,1732548644801,-3922.305,0.00029759,10]
[343294503,1732548644812,-14248.5,0.00029759,10]
[343294505,1732548644824,-11412.14098022,0.00029759,10]
[343294507,1732548644833,-427081.20963698,0.00029759,10]
[343294509,1732548644843,-433392.7847038,0.00029759,10]
[343294511,1732548644852,-4531144.77600032,0.00029759,10]
[343294513,1732548644862,-38505.75188031,0.00029759,5]
[343294515,1732548644871,-1487.80578611,0.00029759,2]
[343294517,1732548644882,-578.9155208,0.00029759,2]
[343294519,1732548644892,-421873.11267759,0.00029759,10]
[343294521,1732548644904,-2412.99919688,0.00029759,10]
[343294639,1732548646869,-500.0,0.00029038,2]
[343294640,1732548646879,-3913.17814114,0.00029659,2]
[343294641,1732548646890,-121347.69508197,0.00029759,10]
[343294642,1732548646899,-164555.97520418,0.00029759,10]
[343294643,1732548646911,-9514.00760035,0.00029759,10]
[343294644,1732548646952,-1909.74,0.00029759,10]
[343294645,1732548646964,-26019.661224,0.00029759,10]
[343294646,1732548646978,-2730.24021142,0.00029759,2]
[343294647,1732548646988,-289464.09253959,0.00029759,10]
[343294648,1732548707843,186.6820724,0.00025731,2]
[343294662,1732548990501,258.76499801,0.00030137,120]
[343294663,1732548990525,504.14891317,0.00030137,120]
[343294664,1732548990550,333.39279,0.00030137,120]
[343294667,1732549187677,161.348465,0.00013973,2]
[343294668,1732549302476,9489.352,0.00025982,2]
[343294669,1732549303565,190.546516,0.00025708,2]
[343294670,1732549304952,251.741632,0.00025982,2]
[343294672,1732549421157,302.90913937,0.00025852,2]
[343294737,1732549832429,-251.741632,0.00026667,2]
[343294738,1732549832439,-884.9722644,0.00026882,2]
[343294739,1732549832452,-566.25,0.00026972,10]
[343294740,1732549832464,-471.88,0.00026972,10]
[343294742,1732549832473,-300.0,0.00026979,2]
[343294743,1732549832482,-300.0,0.00026979,2]
[343294745,1732549832492,-5066.0,0.00026979,2]
[343294747,1732549832503,-500.0,0.00026981,2]
[343294749,1732549832513,-2327.77,0.00026981,2]
[343294751,1732549832523,-500.0,0.00026981,2]
[343294753,1732549832532,-1707.33,0.00026981,2]
[343294756,1732549832542,-500.0,0.00026981,2]
[343294757,1732549832552,-179.773,0.00026982,15]
[343294760,1732549832561,-500.0,0.00026982,2]
[343294761,1732549832571,-500.0,0.00026982,2]
[343294763,1732549832580,-500.0,0.00026982,2]
[343294765,1732549832589,-500.0,0.00026982,2]
[343294767,1732549832599,-500.0,0.00026982,2]
[343294769,1732549832608,-500.0,0.00026982,2]
[343294770,1732549832618,-500.0,0.00026982,2]
[343294772,1732549832628,-500.0,0.00026982,2]
[343294774,1732549832638,-605.26222616,0.00026982,2]
[343294776,1732549832647,-500.0,0.00026982,2]
[343294778,1732549832657,-500.0,0.00026982,2]
[343294780,1732549832667,-500.0,0.00026982,2]
[343294782,1732549832677,-249.40727326,0.00026982,2]
[343294784,1732549832687,-500.0,0.00026982,2]
[343294786,1732549832701,-378.25149183,0.00026982,2]
[343294788,1732549832711,-500.0,0.00026982,2]
[343294790,1732549832721,-500.0,0.00026982,2]
[343294792,1732549832731,-500.0,0.00026982,2]
[343294794,1732549832741,-500.0,0.00026982,2]
[343294796,1732549832751,-500.0,0.00026982,2]
[343294798,1732549832760,-500.0,0.00026982,2]
[343294800,1732549832770,-500.0,0.00026982,2]
[343294802,1732549832780,-500.0,0.00026982,2]
[343294804,1732549832790,-500.0,0.00026982,2]
[343294806,1732549832798,-500.0,0.00026982,2]
[343294807,1732549832808,-500.0,0.00026982,2]
[343294809,1732549832818,-500.0,0.00026982,2]
[343294811,1732549832828,-500.0,0.00026982,2]
[343294813,1732549832837,-500.0,0.00026982,2]
[343294816,1732549832847,-500.0,0.00026982,2]
[343294818,1732549832856,-500.0,0.00026982,2]
[343294820,1732549832866,-500.0,0.00026982,2]
[343294821,1732549832875,-500.0,0.00026982,2]
[343294823,1732549832884,-181.79117062,0.00026982,2]
[343294825,1732549832894,-500.0,0.00026982,2]
[343294828,1732549832904,-500.0,0.00026982,2]
[343294829,1732549832914,-500.0,0.00026982,2]
[343294831,1732549832927,-9135.38,0.00026982,2]
[343294833,1732549832937,-500.0,0.00026982,2]
[343294835,1732549832950,-500.0,0.00026982,2]
[343294837,1732549832960,-500.0,0.00026982,2]
[343294839,1732549832969,-500.0,0.00026982,2]
[343294841,1732549832978,-500.0,0.00026982,2]
[343294843,1732549832988,-500.0,0.00026982,2]
[343294845,1732549832999,-500.0,0.00026982,2]
[343294847,1732549833009,-500.0,0.00026982,2]
[343294849,1732549833020,-500.0,0.00026982,2]
[343294851,1732549833033,-500.0,0.00026982,2]
[343294853,1732549833044,-500.0,0.00026982,2]
[343294855,1732549833054,-500.0,0.00026982,2]
[343294857,1732549833064,-545.04006233,0.00026982,2]
[343294859,1732549833075,-500.0,0.00026982,2]
[343294861,1732549833085,-500.0,0.00026982,2]
[343294863,1732549833095,-500.0,0.00026982,2]
[343294864,1732549833104,-500.0,0.00026982,2]
[343294865,1732549833114,-256.10308401,0.00026982,2]
[343294867,1732549833125,-500.0,0.00026982,2]
[343294869,1732549833135,-500.0,0.00026982,2]
[343294871,1732549833145,-500.0,0.00026982,2]
[343294873,1732549833154,-308.75157788,0.00026982,2]
[343294874,1732549833164,-500.0,0.00026982,2]
[343294876,1732549833174,-589.07397732,0.00026982,2]
[343294878,1732549833185,-500.0,0.00026982,2]
[343294880,1732549833201,-500.0,0.00026982,2]
[343294882,1732549833213,-500.0,0.00026982,2]
[343294884,1732549833223,-500.0,0.00026982,2]
[343294886,1732549833233,-500.0,0.00026982,2]
[343294888,1732549833243,-500.0,0.00026982,2]
[343294890,1732549833252,-500.0,0.00026982,2]
[343294892,1732549833262,-500.0,0.00026982,2]
[343294894,1732549833272,-338.15300424,0.00026982,2]
[343294896,1732549833283,-500.0,0.00026982,2]
[343294898,1732549833294,-500.0,0.00026982,2]
[343294900,1732549833304,-500.0,0.00026982,2]
[343294902,1732549833314,-500.0,0.00026982,2]
[343294904,1732549833325,-500.0,0.00026982,2]
[343294906,1732549833335,-500.0,0.00026982,2]
[343294908,1732549833345,-500.0,0.00026982,2]
[343294910,1732549833355,-500.0,0.00026982,2]
[343294912,1732549833364,-500.0,0.00026982,2]
[343294913,1732549833374,-500.0,0.00026982,2]
[343294915,1732549833384,-500.0,0.00026982,2]
[343294917,1732549833393,-500.0,0.00026982,2]
[343294919,1732549833402,-500.0,0.00026982,2]
[343294921,1732549833413,-500.0,0.00026982,2]
[343294923,1732549833423,-500.0,0.00026982,2]
[343294925,1732549833432,-500.0,0.00026982,2]
[343294927,1732549833442,-500.0,0.00026982,2]
[343294929,1732549833458,-500.0,0.00026982,2]
[343294931,1732549833468,-500.0,0.00026982,2]
[343294933,1732549833478,-500.0,0.00026982,2]
[343294935,1732549833487,-500.0,0.00026982,2]
[343294937,1732549833497,-500.0,0.00026982,2]
[343294939,1732549833507,-500.0,0.00026982,2]
[343294941,1732549833517,-500.0,0.00026982,2]
[343294943,1732549833526,-500.0,0.00026982,2]
[343294945,1732549833536,-221.45684317,0.00026982,2]
[343294947,1732549833545,-500.0,0.00026982,2]
[343294949,1732549833555,-500.0,0.00026982,2]
[343294951,1732549833565,-500.0,0.00026982,2]
[343294953,1732549833574,-500.0,0.00026982,2]
[343294955,1732549833584,-428.72273688,0.00026982,2]
[343294957,1732549833594,-500.0,0.00026982,2]
[343294959,1732549833603,-500.0,0.00026982,2]
[343294961,1732549833613,-500.0,0.00026982,2]
[343294963,1732549833623,-500.0,0.00026982,2]
[343294965,1732549833632,-199.55773052,0.00026982,2]
[343294966,1732549833643,-500.0,0.00026982,2]
[343294967,1732549833652,-500.0,0.00026982,2]
[343294968,1732549833662,-500.0,0.00026982,2]
[343294969,1732549833672,-500.0,0.00026982,2]
[343294970,1732549833682,-500.0,0.00026982,2]
[343294971,1732549833692,-500.0,0.00026982,2]
[343294972,1732549833706,-500.0,0.00026982,2]
[343294973,1732549833717,-500.0,0.00026982,2]
[343294974,1732549833728,-500.0,0.00026982,2]
[343294975,1732549833738,-500.0,0.00026982,2]
[343294976,1732549833749,-500.0,0.00026982,2]
[343294977,1732549833758,-500.0,0.00026982,2]
[343294978,1732549833769,-500.0,0.00026982,2]
[343294979,1732549833779,-500.0,0.00026982,2]
[343294980,1732549833789,-409.30773546,0.00026982,2]
[343294981,1732549833800,-500.0,0.00026982,2]
[343294982,1732549833810,-500.0,0.00026982,2]
[343294983,1732549833820,-500.0,0.00026982,2]
[343294984,1732549833831,-500.0,0.00026982,2]
[343294985,1732549833842,-500.0,0.00026982,2]
[343294986,1732549833851,-500.0,0.00026982,2]
[343294987,1732549833860,-500.0,0.00026982,2]
[343294988,1732549833870,-500.0,0.00026982,2]
[343294989,1732549833881,-500.0,0.00026982,2]
[343294990,1732549833891,-361.1127455,0.00026982,2]
[343294991,1732549833901,-500.0,0.00026982,2]
[343294992,1732549833911,-500.0,0.00026982,2]
[343294993,1732549833921,-500.0,0.00026982,2]
[343294994,1732549833935,-500.0,0.00026982,2]
[343294995,1732549833949,-500.0,0.00026982,2]
[343294996,1732549833959,-500.0,0.00026982,2]
[343294997,1732549833968,-500.0,0.00026982,2]
[343294998,1732549833978,-500.0,0.00026982,2]
[343294999,1732549833988,-500.0,0.00026982,2]
[343295000,1732549833997,-500.0,0.00026982,2]
[343295001,1732549834009,-500.0,0.00026982,2]
[343295002,1732549834019,-500.0,0.00026982,2]
[343295003,1732549834028,-500.0,0.00026982,2]
[343295004,1732549834038,-500.0,0.00026982,2]
[343295005,1732549834048,-500.0,0.00026982,2]
[343295006,1732549834058,-500.0,0.00026982,2]
[343295007,1732549834068,-500.0,0.00026982,2]
[343295008,1732549834078,-500.0,0.00026982,2]
[343295009,1732549834088,-500.0,0.00026982,2]
[343295010,1732549834098,-500.0,0.00026982,2]
[343295011,1732549834108,-500.0,0.00026982,2]
[343295012,1732549834117,-500.0,0.00026982,2]
[343295013,1732549834127,-500.0,0.00026982,2]
[343295014,1732549834136,-500.0,0.00026982,2]
[343295015,1732549834146,-500.0,0.00026982,2]
[343295016,1732549834156,-500.0,0.00026982,2]
[343295017,1732549834166,-500.0,0.00026982,2]
[343295018,1732549834176,-500.0,0.00026982,2]
[343295019,1732549834186,-500.0,0.00026982,2]
[343295020,1732549834199,-500.0,0.00026982,2]
[343295021,1732549834210,-500.0,0.00026982,2]
[343295022,1732549834220,-500.0,0.00026982,2]
[343295023,1732549834230,-500.0,0.00026982,2]
[343295024,1732549834240,-500.0,0.00026982,2]
[343295025,1732549834251,-500.0,0.00026982,2]
[343295026,1732549834261,-500.0,0.00026982,2]
[343295027,1732549834271,-500.0,0.00026982,2]
[343295028,1732549834282,-500.0,0.00026982,2]
[343295029,1732549834292,-500.0,0.00026982,2]
[343295030,1732549834302,-500.0,0.00026982,2]
[343295031,1732549834313,-500.0,0.00026982,2]
[343295032,1732549834323,-500.0,0.00026982,2]
[343295033,1732549834332,-500.0,0.00026982,2]
[343295034,1732549834343,-500.0,0.00026982,2]
[343295035,1732549834353,-500.0,0.00026982,2]
[343295036,1732549834364,-500.0,0.00026982,2]
[343295037,1732549834374,-500.0,0.00026982,2]
[343295038,1732549834384,-500.0,0.00026982,2]
[343295039,1732549834395,-500.0,0.00026982,2]